[Event "Early-Titled-Tuesday-Blitz-October-17-2023"]
[Site "Chess.com"]
[Date "2023.10.17"]
[Round "1"]
[White "WPWPWP-2015"]
[Black "stratacticos"]
[Result "1-0"]
[WhiteElo "2529"]
[BlackElo "1721"]
[TimeControl "180+1"]
[EndTime "8:06:29 PDT"]
[Termination "WPWPWP-2015 won by resignation"]

1. e4 {[%clk 0:02:55.1]} 1... c5 {[%clk 0:02:59.6]} 2. Nf3 {[%clk 0:02:53.4]}
2... Nc6 {[%clk 0:02:59.3]} 3. Bb5 {[%clk 0:02:51.3]} 3... Na5 {[%clk
0:02:58.2]} 4. b3 {[%clk 0:02:45.3]} 4... a6 {[%clk 0:02:58]} 5. Be2 {[%clk
0:02:43]} 5... b5 {[%clk 0:02:57.7]} 6. O-O {[%clk 0:02:20.6]} 6... Bb7 {[%clk
0:02:50.2]} 7. d3 {[%clk 0:02:18.1]} 7... Qb6 {[%clk 0:02:43.4]} 8. Bb2 {[%clk
0:02:17.4]} 8... Nf6 {[%clk 0:02:41.1]} 9. Re1 {[%clk 0:02:17.3]} 9... g6 {[%clk
0:02:39.7]} 10. e5 {[%clk 0:02:12.5]} 10... Nh5 {[%clk 0:02:36.1]} 11. e6 {[%clk
0:02:10.5]} 11... Bg7 {[%clk 0:02:32.8]} 12. exf7+ {[%clk 0:02:08.2]} 12... Kxf7
{[%clk 0:02:32.3]} 13. Ng5+ {[%clk 0:02:06.4]} 13... Kg8 {[%clk 0:02:26.2]} 14.
Bxg7 {[%clk 0:02:02.7]} 14... Kxg7 {[%clk 0:02:25.4]} 15. Bxh5 {[%clk
0:02:00.7]} 15... gxh5 {[%clk 0:02:23.6]} 16. Qxh5 {[%clk 0:01:57.9]} 16... Qf6
{[%clk 0:02:22.7]} 17. Nd2 {[%clk 0:01:57.4]} 17... h6 {[%clk 0:02:21.6]} 18.
Nde4 {[%clk 0:01:55.9]} 18... hxg5 {[%clk 0:02:13.9]} 19. Nxf6 {[%clk
0:01:55.6]} 19... Rxh5 {[%clk 0:02:05.6]} 20. Nxh5+ {[%clk 0:01:55.8]} 20... Kf7
{[%clk 0:02:04.3]} 21. Re5 {[%clk 0:01:52.4]} 21... Nc6 {[%clk 0:01:51.1]} 22.
Rxg5 {[%clk 0:01:50.6]} 22... Nd4 {[%clk 0:01:50.2]} 23. Rxc5 {[%clk 0:01:46]}
23... d6 {[%clk 0:01:35.1]} 24. Rg5 {[%clk 0:01:44.1]} 24... Nxc2 {[%clk
0:01:24.8]} 25. Rc1 {[%clk 0:01:42.7]} 25... Nd4 {[%clk 0:01:08.9]} 26. Kf1
{[%clk 0:01:41.6]} 26... Ne6 {[%clk 0:01:01.6]} 27. Rf5+ {[%clk 0:01:32]} 27...
Kg6 {[%clk 0:00:56.6]} 28. Ng3 {[%clk 0:01:31.9]} 28... a5 {[%clk 0:00:45.3]}
29. h4 {[%clk 0:01:24.5]} 29... b4 {[%clk 0:00:43.6]} 30. h5+ {[%clk 0:01:22.5]}
30... Kg7 {[%clk 0:00:43.4]} 31. Re1 {[%clk 0:01:20.1]} 31... Bc8 {[%clk
0:00:39.4]} 32. h6+ {[%clk 0:01:16.1]} 32... Kg6 {[%clk 0:00:37.5]} 33. h7
{[%clk 0:01:12.3]} 33... Bd7 {[%clk 0:00:36.4]} 34. Rxa5 {[%clk 0:01:05.5]}
34... Rh8 {[%clk 0:00:31.1]} 35. Ra7 {[%clk 0:01:04.8]} 35... Nf4 {[%clk
0:00:18.2]} 36. Rxd7 {[%clk 0:00:55.6]} 1-0

[Event "Early-Titled-Tuesday-Blitz-October-17-2023"]
[Site "Chess.com"]
[Date "2023.10.17"]
[Round "1"]
[White "Grossboss19"]
[Black "Ranindu2003"]
[Result "1-0"]
[WhiteElo "2473"]
[BlackElo "2786"]
[TimeControl "180+1"]
[EndTime "8:06:30 PDT"]
[Termination "Grossboss19 won by checkmate"]

1. d4 {[%clk 0:02:59.4]} 1... d5 {[%clk 0:02:59.6]} 2. c4 {[%clk 0:02:59.2]}
2... e6 {[%clk 0:03:00]} 3. Nc3 {[%clk 0:02:59.1]} 3... Nf6 {[%clk 0:03:00.4]}
4. cxd5 {[%clk 0:02:59.4]} 4... exd5 {[%clk 0:03:01.3]} 5. Bg5 {[%clk
0:02:59.6]} 5... Bb4 {[%clk 0:03:01.9]} 6. e3 {[%clk 0:02:56.8]} 6... h6 {[%clk
0:03:01.3]} 7. Bh4 {[%clk 0:02:57.1]} 7... g5 {[%clk 0:03:01.3]} 8. Bg3 {[%clk
0:02:57.6]} 8... Ne4 {[%clk 0:03:02]} 9. Ne2 {[%clk 0:02:56.9]} 9... h5 {[%clk
0:03:00.7]} 10. f3 {[%clk 0:02:56.2]} 10... Nxg3 {[%clk 0:02:54.9]} 11. hxg3
{[%clk 0:02:54.9]} 11... Qe7 {[%clk 0:02:49]} 12. Qd2 {[%clk 0:02:51.4]} 12...
Nc6 {[%clk 0:02:47.4]} 13. a3 {[%clk 0:02:51.2]} 13... Ba5 {[%clk 0:02:39.5]}
14. b4 {[%clk 0:02:46.5]} 14... Bb6 {[%clk 0:02:39.7]} 15. Nxd5 {[%clk
0:02:45.6]} 15... Qd6 {[%clk 0:02:34.1]} 16. e4 {[%clk 0:02:39.6]} 16... Be6
{[%clk 0:02:30.3]} 17. Nxb6 {[%clk 0:02:35.7]} 17... axb6 {[%clk 0:02:30.4]} 18.
d5 {[%clk 0:02:35.8]} 18... Nxb4 {[%clk 0:02:16.6]} 19. dxe6 {[%clk 0:02:32.7]}
19... Nd3+ {[%clk 0:02:16.3]} 20. Kd1 {[%clk 0:02:30.1]} 20... Nf2+ {[%clk
0:02:16.4]} 21. Ke1 {[%clk 0:02:30]} 21... Nd3+ {[%clk 0:02:06.9]} 22. Kd1
{[%clk 0:02:28.1]} 22... O-O-O {[%clk 0:01:55]} 23. Kc2 {[%clk 0:01:49.6]} 23...
Qxe6 {[%clk 0:01:19.5]} 24. Qc3 {[%clk 0:01:36.8]} 24... Nf2 {[%clk 0:01:09.5]}
25. Rg1 {[%clk 0:01:31.2]} 25... Rh6 {[%clk 0:01:09.6]} 26. Nd4 {[%clk
0:01:25.7]} 26... Qe5 {[%clk 0:01:05.6]} 27. Nb5 {[%clk 0:01:20.1]} 27... Qxg3
{[%clk 0:00:56.1]} 28. e5 {[%clk 0:01:09.9]} 28... Rd7 {[%clk 0:00:41.3]} 29.
Be2 {[%clk 0:01:02.4]} 29... Kb8 {[%clk 0:00:34.8]} 30. Kb2 {[%clk 0:00:55.8]}
30... Rc6 {[%clk 0:00:34.6]} 31. Qe3 {[%clk 0:00:55.7]} 31... Rd5 {[%clk
0:00:18.5]} 32. Rac1 {[%clk 0:00:45]} 32... Rxe5 {[%clk 0:00:16.6]} 33. Qd2
{[%clk 0:00:42.8]} 33... Qf4 {[%clk 0:00:15.9]} 34. Qd8# {[%clk 0:00:41.8]} 1-0

[Event "Early-Titled-Tuesday-Blitz-October-17-2023"]
[Site "Chess.com"]
[Date "2023.10.17"]
[Round "1"]
[White "Magila31"]
[Black "Lion-Al-Messi"]
[Result "0-1"]
[WhiteElo "2356"]
[BlackElo "2645"]
[TimeControl "180+1"]
[EndTime "8:06:32 PDT"]
[Termination "Lion-Al-Messi won on time"]

1. d4 {[%clk 0:02:58.9]} 1... d5 {[%clk 0:02:59.7]} 2. c4 {[%clk 0:02:58.3]}
2... c6 {[%clk 0:02:59.4]} 3. Nf3 {[%clk 0:02:57.5]} 3... Nf6 {[%clk 0:02:59.6]}
4. Nc3 {[%clk 0:02:56.9]} 4... dxc4 {[%clk 0:02:59.3]} 5. a4 {[%clk 0:02:55.5]}
5... Bf5 {[%clk 0:02:59]} 6. e3 {[%clk 0:02:55.1]} 6... e6 {[%clk 0:02:57]} 7.
Bxc4 {[%clk 0:02:54.9]} 7... Bb4 {[%clk 0:02:57.1]} 8. O-O {[%clk 0:02:54.9]}
8... Nbd7 {[%clk 0:02:57.3]} 9. Qe2 {[%clk 0:02:54.8]} 9... Bg6 {[%clk
0:02:57.3]} 10. Rd1 {[%clk 0:02:50.4]} 10... O-O {[%clk 0:02:53.5]} 11. h3
{[%clk 0:02:42.7]} 11... Qe7 {[%clk 0:02:49.5]} 12. Bd3 {[%clk 0:02:33.9]} 12...
e5 {[%clk 0:02:48.2]} 13. Bxg6 {[%clk 0:02:27.6]} 13... hxg6 {[%clk 0:02:47.7]}
14. Qc4 {[%clk 0:01:52.6]} 14... e4 {[%clk 0:02:35.8]} 15. Nd2 {[%clk
0:01:51.2]} 15... Nb6 {[%clk 0:02:35.8]} 16. Qb3 {[%clk 0:01:48.5]} 16... Nbd5
{[%clk 0:02:33.8]} 17. Nc4 {[%clk 0:01:40.3]} 17... Rac8 {[%clk 0:02:18.9]} 18.
Bd2 {[%clk 0:01:39.6]} 18... a5 {[%clk 0:02:14.6]} 19. Ne5 {[%clk 0:01:36.8]}
19... Rfd8 {[%clk 0:02:08.8]} 20. Rac1 {[%clk 0:01:33.3]} 20... Qe6 {[%clk
0:02:07.1]} 21. Nxd5 {[%clk 0:01:32.4]} 21... Nxd5 {[%clk 0:02:00]} 22. Bxb4
{[%clk 0:01:31.5]} 22... axb4 {[%clk 0:02:00.9]} 23. a5 {[%clk 0:01:22.3]} 23...
g5 {[%clk 0:01:53.7]} 24. Qc2 {[%clk 0:01:14.6]} 24... f6 {[%clk 0:01:48.9]} 25.
Nc4 {[%clk 0:01:12.3]} 25... g4 {[%clk 0:01:46.4]} 26. hxg4 {[%clk 0:01:11.2]}
26... Qxg4 {[%clk 0:01:47.3]} 27. Nb6 {[%clk 0:01:02.4]} 27... Nxb6 {[%clk
0:01:39]} 28. axb6 {[%clk 0:01:02.1]} 28... Kf7 {[%clk 0:01:37.5]} 29. Qc4+
{[%clk 0:01:01.7]} 29... Rd5 {[%clk 0:01:37.5]} 30. Qxb4 {[%clk 0:00:54.1]}
30... Rh8 {[%clk 0:01:36.9]} 31. Qb3 {[%clk 0:00:29.9]} 31... Kg6 {[%clk
0:01:32.8]} 32. Qc2 {[%clk 0:00:15.6]} 32... Rdh5 {[%clk 0:01:30.4]} 33. f3
{[%clk 0:00:15.9]} 33... Qg3 {[%clk 0:01:04.7]} 34. Qxe4+ {[%clk 0:00:09]} 34...
Kf7 {[%clk 0:01:05]} 35. Kf1 {[%clk 0:00:04.9]} 35... Rh2 {[%clk 0:01:01.5]} 36.
Ke2 {[%clk 0:00:04.1]} 36... Qxg2+ {[%clk 0:00:58.6]} 37. Kd3 {[%clk 0:00:04.1]}
37... Qxb2 {[%clk 0:00:58.5]} 0-1

[Event "Early-Titled-Tuesday-Blitz-October-17-2023"]
[Site "Chess.com"]
[Date "2023.10.17"]
[Round "1"]
[White "ukchessbomber"]
[Black "spotbet"]
[Result "1-0"]
[WhiteElo "2640"]
[BlackElo "2353"]
[TimeControl "180+1"]
[EndTime "8:06:32 PDT"]
[Termination "ukchessbomber won by checkmate"]

1. b4 {[%clk 0:03:00.3]} 1... a5 {[%clk 0:02:59.2]} 2. bxa5 {[%clk 0:02:59.2]}
2... Nc6 {[%clk 0:02:58.3]} 3. Bb2 {[%clk 0:02:59]} 3... Nf6 {[%clk 0:02:57.4]}
4. e3 {[%clk 0:02:53.9]} 4... e5 {[%clk 0:02:56.8]} 5. Nf3 {[%clk 0:02:47.3]}
5... e4 {[%clk 0:02:54.6]} 6. Nd4 {[%clk 0:02:44]} 6... Nxa5 {[%clk 0:02:54.9]}
7. Be2 {[%clk 0:02:35.1]} 7... Be7 {[%clk 0:02:53.5]} 8. Nf5 {[%clk 0:02:33.1]}
8... O-O {[%clk 0:02:53.6]} 9. Nxe7+ {[%clk 0:02:33.4]} 9... Qxe7 {[%clk
0:02:53.9]} 10. O-O {[%clk 0:02:34]} 10... d5 {[%clk 0:02:53.6]} 11. d3 {[%clk
0:02:32.6]} 11... Bf5 {[%clk 0:02:51.9]} 12. Nd2 {[%clk 0:02:29.1]} 12... exd3
{[%clk 0:02:51.2]} 13. cxd3 {[%clk 0:02:30]} 13... c6 {[%clk 0:02:50.9]} 14. a4
{[%clk 0:02:26.6]} 14... Nd7 {[%clk 0:02:44.1]} 15. Ba3 {[%clk 0:02:20.7]} 15...
c5 {[%clk 0:02:42.6]} 16. d4 {[%clk 0:02:21.4]} 16... b6 {[%clk 0:02:42.5]} 17.
Rc1 {[%clk 0:02:21.5]} 17... Rfc8 {[%clk 0:02:38.2]} 18. Bb5 {[%clk 0:02:18.4]}
18... Nf6 {[%clk 0:02:27.6]} 19. Nf3 {[%clk 0:01:56.8]} 19... Qa7 {[%clk
0:02:26.9]} 20. dxc5 {[%clk 0:01:47.6]} 20... bxc5 {[%clk 0:02:26.1]} 21. Bb2
{[%clk 0:01:48.5]} 21... Rd8 {[%clk 0:01:38.6]} 22. Ne5 {[%clk 0:01:15.5]} 22...
Rac8 {[%clk 0:01:34.6]} 23. Qf3 {[%clk 0:01:14.9]} 23... Be6 {[%clk 0:01:17.6]}
24. Qg3 {[%clk 0:01:14.4]} 24... d4 {[%clk 0:01:12.5]} 25. exd4 {[%clk
0:00:57.5]} 25... cxd4 {[%clk 0:01:13.4]} 26. Rfd1 {[%clk 0:00:58.1]} 26... Nb3
{[%clk 0:01:12.8]} 27. Rxc8 {[%clk 0:00:46.7]} 27... Rxc8 {[%clk 0:01:13.7]} 28.
Nc6 {[%clk 0:00:46.8]} 28... Qc5 {[%clk 0:00:54.9]} 29. Nxd4 {[%clk 0:00:37.7]}
29... Rd8 {[%clk 0:00:49.3]} 30. h3 {[%clk 0:00:29.4]} 30... Nxd4 {[%clk
0:00:48.9]} 31. Rxd4 {[%clk 0:00:29.6]} 31... Rxd4 {[%clk 0:00:35.1]} 32. Bxd4
{[%clk 0:00:26.2]} 32... Qc1+ {[%clk 0:00:32.8]} 33. Kh2 {[%clk 0:00:25.9]}
33... Ne4 {[%clk 0:00:22]} 34. Qxg7# {[%clk 0:00:25.5]} 1-0

[Event "Early-Titled-Tuesday-Blitz-October-17-2023"]
[Site "Chess.com"]
[Date "2023.10.17"]
[Round "1"]
[White "DopplerCharlotteDeWitte"]
[Black "GMSAGOR"]
[Result "1-0"]
[WhiteElo "2807"]
[BlackElo "2465"]
[TimeControl "180+1"]
[EndTime "8:06:33 PDT"]
[Termination "DopplerCharlotteDeWitte won by resignation"]

1. e4 {[%clk 0:03:00.9]} 1... e5 {[%clk 0:02:59.3]} 2. Nf3 {[%clk 0:03:01.3]}
2... Nf6 {[%clk 0:03:00]} 3. Nxe5 {[%clk 0:02:55.1]} 3... d6 {[%clk 0:02:59.9]}
4. Nf3 {[%clk 0:02:51.5]} 4... Nxe4 {[%clk 0:03:00.5]} 5. d4 {[%clk 0:02:50.4]}
5... d5 {[%clk 0:03:00.7]} 6. Bd3 {[%clk 0:02:45.9]} 6... Nc6 {[%clk 0:03:01.6]}
7. Nc3 {[%clk 0:02:44.5]} 7... Bb4 {[%clk 0:02:57.5]} 8. O-O {[%clk 0:02:37]}
8... Bxc3 {[%clk 0:02:46.4]} 9. bxc3 {[%clk 0:02:34.5]} 9... O-O {[%clk
0:02:41.7]} 10. c4 {[%clk 0:02:28.7]} 10... f5 {[%clk 0:02:30.1]} 11. cxd5
{[%clk 0:02:26.9]} 11... Qxd5 {[%clk 0:02:31]} 12. c4 {[%clk 0:02:26.3]} 12...
Qd8 {[%clk 0:02:31]} 13. Bb2 {[%clk 0:02:17.4]} 13... Nb4 {[%clk 0:02:21.5]} 14.
Bb1 {[%clk 0:02:16.5]} 14... c5 {[%clk 0:02:20.1]} 15. d5 {[%clk 0:02:10.9]}
15... Nd6 {[%clk 0:02:17.9]} 16. Ne5 {[%clk 0:02:05.4]} 16... Na6 {[%clk
0:02:10.3]} 17. Re1 {[%clk 0:02:04]} 17... Nc7 {[%clk 0:02:10.3]} 18. Bd3 {[%clk
0:02:02.9]} 18... Nce8 {[%clk 0:02:03.1]} 19. Qf3 {[%clk 0:01:58.5]} 19... Nf6
{[%clk 0:01:59.9]} 20. Qf4 {[%clk 0:01:56.4]} 20... a6 {[%clk 0:01:53]} 21. a4
{[%clk 0:01:56.3]} 21... Bd7 {[%clk 0:01:31.7]} 22. Nxd7 {[%clk 0:01:44.2]}
22... Qxd7 {[%clk 0:01:31]} 23. Re6 {[%clk 0:01:44]} 23... Rad8 {[%clk
0:01:04.4]} 24. a5 {[%clk 0:01:22]} 24... Rf7 {[%clk 0:00:59.8]} 25. Bxf6 {[%clk
0:01:15.9]} 25... Rxf6 {[%clk 0:00:59.4]} 26. Rxf6 {[%clk 0:01:15.6]} 26... gxf6
{[%clk 0:01:00.3]} 27. h3 {[%clk 0:01:11.8]} 27... Re8 {[%clk 0:00:59.8]} 28.
Rb1 {[%clk 0:01:10]} 28... Re5 {[%clk 0:00:58.7]} 29. Rb6 {[%clk 0:01:06.3]}
29... Kg7 {[%clk 0:00:59.3]} 30. Qg3+ {[%clk 0:01:04.6]} 30... Kf7 {[%clk
0:00:59.3]} 31. Qh4 {[%clk 0:01:05.2]} 31... Kg7 {[%clk 0:00:58.5]} 32. g4
{[%clk 0:01:03.1]} 32... Qe7 {[%clk 0:00:43.9]} 33. Kg2 {[%clk 0:00:57.9]} 33...
h6 {[%clk 0:00:35.6]} 34. gxf5 {[%clk 0:00:55.6]} 34... Kh7 {[%clk 0:00:32.1]}
35. Qg4 {[%clk 0:00:54]} 35... Ne4 {[%clk 0:00:17]} 36. Bxe4 {[%clk 0:00:50.8]}
36... Rxe4 {[%clk 0:00:16.8]} 37. Qg6+ {[%clk 0:00:51.5]} 37... Kh8 {[%clk
0:00:17.4]} 1-0

[Event "Early-Titled-Tuesday-Blitz-October-17-2023"]
[Site "Chess.com"]
[Date "2023.10.17"]
[Round "1"]
[White "ChessQueen"]
[Black "Laico"]
[Result "1-0"]
[WhiteElo "2716"]
[BlackElo "2423"]
[TimeControl "180+1"]
[EndTime "8:06:33 PDT"]
[Termination "ChessQueen won on time"]

1. d4 {[%clk 0:03:00.9]} 1... e6 {[%clk 0:02:58.4]} 2. e4 {[%clk 0:03:00.1]}
2... d5 {[%clk 0:02:57.9]} 3. exd5 {[%clk 0:03:00]} 3... exd5 {[%clk 0:02:58.8]}
4. Nf3 {[%clk 0:03:00.3]} 4... Nc6 {[%clk 0:02:58.2]} 5. h3 {[%clk 0:03:00.1]}
5... Nf6 {[%clk 0:02:57.8]} 6. Bb5 {[%clk 0:02:56.5]} 6... Be7 {[%clk
0:02:54.9]} 7. Ne5 {[%clk 0:02:51.1]} 7... Bd7 {[%clk 0:02:51.3]} 8. Nxd7 {[%clk
0:02:49.6]} 8... Qxd7 {[%clk 0:02:52.2]} 9. O-O {[%clk 0:02:49.4]} 9... O-O
{[%clk 0:02:51.3]} 10. c3 {[%clk 0:02:46.8]} 10... Rfe8 {[%clk 0:02:48.2]} 11.
Nd2 {[%clk 0:02:45.6]} 11... a6 {[%clk 0:02:47.6]} 12. Bd3 {[%clk 0:02:44.9]}
12... Bd6 {[%clk 0:02:44.8]} 13. Nf3 {[%clk 0:02:35.8]} 13... Ne4 {[%clk
0:02:44.3]} 14. Re1 {[%clk 0:02:36.2]} 14... f5 {[%clk 0:02:37.2]} 15. a3 {[%clk
0:02:11.4]} 15... h6 {[%clk 0:02:28.5]} 16. c4 {[%clk 0:02:10.1]} 16... dxc4
{[%clk 0:02:19.6]} 17. Bxc4+ {[%clk 0:02:10.1]} 17... Kh7 {[%clk 0:02:17.7]} 18.
Bd3 {[%clk 0:02:04.6]} 18... Rad8 {[%clk 0:02:12.8]} 19. Qc2 {[%clk 0:01:58.6]}
19... Qe6 {[%clk 0:01:24.9]} 20. Bg5 {[%clk 0:01:32.6]} 20... Rd7 {[%clk
0:00:59.9]} 21. Rad1 {[%clk 0:01:31]} 21... Qg6 {[%clk 0:00:54.9]} 22. Be3
{[%clk 0:01:22.1]} 22... Rde7 {[%clk 0:00:52.6]} 23. Bxa6 {[%clk 0:01:14.6]}
23... Nxd4 {[%clk 0:00:43.8]} 24. Bxd4 {[%clk 0:01:08.6]} 24... bxa6 {[%clk
0:00:43.9]} 25. Re3 {[%clk 0:01:03.5]} 25... Kh8 {[%clk 0:00:23.2]} 26. Rde1
{[%clk 0:00:59.1]} 26... Bf4 {[%clk 0:00:20.2]} 27. R3e2 {[%clk 0:00:59.1]}
27... Qd6 {[%clk 0:00:18.7]} 28. Nh4 {[%clk 0:00:51.7]} 28... Qxd4 {[%clk
0:00:10.7]} 29. Nxf5 {[%clk 0:00:52]} 29... Bh2+ {[%clk 0:00:03.7]} 30. Kf1
{[%clk 0:00:46.1]} 30... Rf7 {[%clk 0:00:02.1]} 31. Rxe4 {[%clk 0:00:43.8]}
31... Rxe4 {[%clk 0:00:01.2]} 32. Rxe4 {[%clk 0:00:43.6]} 1-0

[Event "Early-Titled-Tuesday-Blitz-October-17-2023"]
[Site "Chess.com"]
[Date "2023.10.17"]
[Round "1"]
[White "Mr_Lion22"]
[Black "rasmussvane"]
[Result "0-1"]
[WhiteElo "2516"]
[BlackElo "2998"]
[TimeControl "180+1"]
[EndTime "8:06:37 PDT"]
[Termination "rasmussvane won by resignation"]

1. d4 {[%clk 0:02:49.4]} 1... d5 {[%clk 0:02:59.5]} 2. c4 {[%clk 0:02:46.9]}
2... e6 {[%clk 0:02:59.7]} 3. Nc3 {[%clk 0:02:47.4]} 3... a6 {[%clk 0:02:59.8]}
4. cxd5 {[%clk 0:02:47.2]} 4... exd5 {[%clk 0:03:00.7]} 5. Nf3 {[%clk
0:02:46.9]} 5... Nf6 {[%clk 0:02:59.7]} 6. Bg5 {[%clk 0:02:47.4]} 6... Be6
{[%clk 0:02:59.9]} 7. e3 {[%clk 0:02:47.7]} 7... Nbd7 {[%clk 0:02:59.9]} 8. Bd3
{[%clk 0:02:48.3]} 8... Bd6 {[%clk 0:03:00.1]} 9. O-O {[%clk 0:02:48.7]} 9... c6
{[%clk 0:03:00.5]} 10. Qc2 {[%clk 0:02:49.2]} 10... Qc7 {[%clk 0:03:00.4]} 11.
Rab1 {[%clk 0:02:49.2]} 11... O-O {[%clk 0:02:54]} 12. b4 {[%clk 0:02:49.7]}
12... Bg4 {[%clk 0:02:53.6]} 13. Nd2 {[%clk 0:02:49.2]} 13... Bxh2+ {[%clk
0:02:51.2]} 14. Kh1 {[%clk 0:02:47.4]} 14... h6 {[%clk 0:02:23.4]} 15. Bxf6
{[%clk 0:02:16.2]} 15... Nxf6 {[%clk 0:02:24.3]} 16. f3 {[%clk 0:01:42.8]} 16...
Bd7 {[%clk 0:02:02.1]} 17. f4 {[%clk 0:01:30.5]} 17... Bg3 {[%clk 0:01:42.3]}
18. Ne2 {[%clk 0:00:57.8]} 18... Nh5 {[%clk 0:01:29.4]} 19. Nf3 {[%clk
0:00:37.1]} 19... Rae8 {[%clk 0:01:18.2]} 20. Qd2 {[%clk 0:00:32.8]} 20... Qd8
{[%clk 0:01:13.1]} 21. Kg1 {[%clk 0:00:24.2]} 21... Bg4 {[%clk 0:01:07]} 22. Ne5
{[%clk 0:00:16.8]} 22... Qh4 {[%clk 0:00:55.4]} 23. Nxg4 {[%clk 0:00:17.3]}
23... Qxg4 {[%clk 0:00:55.7]} 24. Rf3 {[%clk 0:00:17.9]} 24... Qh4 {[%clk
0:00:52.6]} 25. Kf1 {[%clk 0:00:07.2]} 25... Qh1+ {[%clk 0:00:37.1]} 26. Ng1
{[%clk 0:00:07.8]} 26... Bh4 {[%clk 0:00:37.7]} 27. g4 {[%clk 0:00:07.2]} 27...
Ng3+ {[%clk 0:00:34.8]} 28. Kf2 {[%clk 0:00:06.2]} 0-1

[Event "Early-Titled-Tuesday-Blitz-October-17-2023"]
[Site "Chess.com"]
[Date "2023.10.17"]
[Round "1"]
[White "Defenstrator"]
[Black "Harry_Rakkel"]
[Result "0-1"]
[WhiteElo "2398"]
[BlackElo "2674"]
[TimeControl "180+1"]
[EndTime "8:06:39 PDT"]
[Termination "Harry_Rakkel won by resignation"]

1. e4 {[%clk 0:03:00]} 1... c5 {[%clk 0:02:36.7]} 2. d4 {[%clk 0:02:55.1]} 2...
cxd4 {[%clk 0:02:35.7]} 3. Ne2 {[%clk 0:02:55.4]} 3... Nf6 {[%clk 0:02:29.1]} 4.
Qxd4 {[%clk 0:02:34.6]} 4... Nc6 {[%clk 0:02:27.3]} 5. Qe3 {[%clk 0:02:29.2]}
5... d5 {[%clk 0:02:22.5]} 6. exd5 {[%clk 0:02:24.6]} 6... Nxd5 {[%clk
0:02:19.5]} 7. Qd2 {[%clk 0:02:24.2]} 7... Bf5 {[%clk 0:02:11.5]} 8. Nbc3 {[%clk
0:02:11]} 8... Ndb4 {[%clk 0:02:09.5]} 9. Ng3 {[%clk 0:01:37.7]} 9... Nxc2+
{[%clk 0:02:07.8]} 10. Kd1 {[%clk 0:01:35.5]} 10... Bg6 {[%clk 0:02:07.3]} 11.
Rb1 {[%clk 0:01:29.8]} 11... N2b4 {[%clk 0:01:57.1]} 12. Ra1 {[%clk 0:01:24.8]}
12... e6 {[%clk 0:01:55.7]} 13. a3 {[%clk 0:01:18]} 13... Qb6 {[%clk 0:01:44.6]}
14. Na4 {[%clk 0:01:06.6]} 14... Qc7 {[%clk 0:01:41.3]} 15. Qc3 {[%clk
0:00:55.1]} 15... Rd8+ {[%clk 0:01:36.6]} 16. Bd2 {[%clk 0:00:53.8]} 16... Nd5
{[%clk 0:01:29]} 17. Qb3 {[%clk 0:00:46.2]} 17... Be7 {[%clk 0:01:28.2]} 18. Bd3
{[%clk 0:00:42.3]} 18... O-O {[%clk 0:01:27.6]} 19. Bxg6 {[%clk 0:00:42.5]}
19... hxg6 {[%clk 0:01:27.3]} 20. Ke1 {[%clk 0:00:36.3]} 20... Nf4 {[%clk
0:01:26.5]} 21. Bxf4 {[%clk 0:00:28.4]} 21... Qxf4 {[%clk 0:01:25.9]} 22. Nc3
{[%clk 0:00:25.7]} 22... Nd4 {[%clk 0:01:25.5]} 23. Qd1 {[%clk 0:00:20]} 23...
Bh4 {[%clk 0:01:20.9]} 24. Nge4 {[%clk 0:00:16.3]} 24... Qe5 {[%clk 0:00:53.5]}
25. g3 {[%clk 0:00:13.3]} 25... Be7 {[%clk 0:00:52.9]} 26. Kf1 {[%clk
0:00:07.2]} 26... f5 {[%clk 0:00:48.6]} 27. f4 {[%clk 0:00:05.3]} 27... Qa5
{[%clk 0:00:45.1]} 28. Nf2 {[%clk 0:00:03.9]} 28... Qa6+ {[%clk 0:00:43.1]} 29.
Kg2 {[%clk 0:00:03.7]} 29... Qc6+ {[%clk 0:00:42.9]} 30. Kg1 {[%clk 0:00:02.9]}
30... Nf3+ {[%clk 0:00:43]} 0-1

[Event "Early-Titled-Tuesday-Blitz-October-17-2023"]
[Site "Chess.com"]
[Date "2023.10.17"]
[Round "1"]
[White "Kildepiotr"]
[Black "Aleksandar-Topalov"]
[Result "1-0"]
[WhiteElo "2636"]
[BlackElo "2340"]
[TimeControl "180+1"]
[EndTime "8:06:39 PDT"]
[Termination "Kildepiotr won on time"]

1. Nf3 {[%clk 0:03:00.9]} 1... Nf6 {[%clk 0:02:58.7]} 2. g3 {[%clk 0:03:01.2]}
2... g6 {[%clk 0:02:58.3]} 3. Bg2 {[%clk 0:03:01.8]} 3... Bg7 {[%clk 0:02:58.4]}
4. O-O {[%clk 0:03:02.7]} 4... O-O {[%clk 0:02:58.3]} 5. d4 {[%clk 0:03:03.3]}
5... d6 {[%clk 0:02:56]} 6. Nbd2 {[%clk 0:03:03]} 6... Nc6 {[%clk 0:02:49.7]} 7.
e4 {[%clk 0:03:03.1]} 7... e5 {[%clk 0:02:49.6]} 8. dxe5 {[%clk 0:03:02.9]} 8...
dxe5 {[%clk 0:02:48.2]} 9. c3 {[%clk 0:03:03.3]} 9... Qe7 {[%clk 0:02:41]} 10.
Qc2 {[%clk 0:03:02.6]} 10... Ne8 {[%clk 0:02:16.5]} 11. b4 {[%clk 0:03:01.5]}
11... Nd6 {[%clk 0:02:11.2]} 12. a4 {[%clk 0:03:00.4]} 12... Nd8 {[%clk
0:02:05.3]} 13. b5 {[%clk 0:02:55.8]} 13... Ne6 {[%clk 0:02:01.4]} 14. Ba3
{[%clk 0:02:55.8]} 14... b6 {[%clk 0:01:55.5]} 15. Nc4 {[%clk 0:02:53.1]} 15...
Nc5 {[%clk 0:01:52.9]} 16. Bxc5 {[%clk 0:02:52]} 16... bxc5 {[%clk 0:01:52.1]}
17. Ne3 {[%clk 0:02:48.9]} 17... Be6 {[%clk 0:01:51.1]} 18. Nd2 {[%clk
0:02:45.7]} 18... a6 {[%clk 0:01:43.6]} 19. c4 {[%clk 0:02:44.1]} 19... Nc8
{[%clk 0:01:30.7]} 20. Nd5 {[%clk 0:02:37.3]} 20... Bxd5 {[%clk 0:01:28.2]} 21.
cxd5 {[%clk 0:02:38.2]} 21... axb5 {[%clk 0:01:26.8]} 22. axb5 {[%clk
0:02:37.2]} 22... Nb6 {[%clk 0:01:26.2]} 23. Nb3 {[%clk 0:02:25.2]} 23... c4
{[%clk 0:01:23.8]} 24. Na5 {[%clk 0:02:24.7]} 24... Qc5 {[%clk 0:01:16.8]} 25.
Rfb1 {[%clk 0:02:22.3]} 25... f5 {[%clk 0:01:12.2]} 26. exf5 {[%clk 0:02:16.4]}
26... gxf5 {[%clk 0:01:12.2]} 27. d6 {[%clk 0:02:16]} 27... Rxa5 {[%clk
0:01:06.7]} 28. Rxa5 {[%clk 0:02:14.6]} 28... cxd6 {[%clk 0:01:07]} 29. Ra6
{[%clk 0:02:09.8]} 29... e4 {[%clk 0:01:04.8]} 30. Rxb6 {[%clk 0:02:04.8]} 30...
Qxb6 {[%clk 0:01:04.2]} 31. Qxc4+ {[%clk 0:02:05]} 31... Kh8 {[%clk 0:01:04.5]}
32. Qe6 {[%clk 0:01:46.7]} 32... e3 {[%clk 0:01:00.6]} 33. fxe3 {[%clk
0:01:44.6]} 33... f4 {[%clk 0:00:51.5]} 34. gxf4 {[%clk 0:01:42.3]} 34... Rxf4
{[%clk 0:00:51.7]} 35. Bd5 {[%clk 0:01:37.6]} 35... Rf8 {[%clk 0:00:50.4]} 36.
Kh1 {[%clk 0:01:36]} 36... Be5 {[%clk 0:00:34.6]} 37. Rg1 {[%clk 0:01:32.8]}
37... Qb8 {[%clk 0:00:28.2]} 38. b6 {[%clk 0:01:25.1]} 38... Re8 {[%clk
0:00:28.4]} 39. Qd7 {[%clk 0:01:17.8]} 39... Rd8 {[%clk 0:00:25.5]} 40. Qc7
{[%clk 0:01:16.3]} 40... Rf8 {[%clk 0:00:06.9]} 41. Qxb8 {[%clk 0:01:05.6]}
41... Rxb8 {[%clk 0:00:07]} 42. b7 {[%clk 0:01:06.3]} 42... h6 {[%clk
0:00:05.8]} 43. Rc1 {[%clk 0:01:04.5]} 1-0